bitfinex/quotes_SOLUSD_20250410
["timestamp","ask_amount","ask_price","bid_price","bid_amount"]
[1744288287519,38.27146089,115.3,115.19,297.8]
[1744288287705,26.11986252,115.36,115.29,38.27146089]
[1744288287915,26.11986252,115.36,115.35,38.27146089]
[1744288288224,0.03,115.36,115.35,38.27146089]
[1744288288784,0.03,115.36,115.33,26.16693714]
[1744288288981,0.03,115.36,115.35,17.3094289]
[1744288289186,0.03,115.36,115.35,55.58088979]
[1744288289497,0.03,115.36,115.35,17.3094289]
[1744288289880,0.03,115.36,115.35,55.58088979]
[1744288290085,0.03,115.43,115.35,55.58088979]
[1744288290288,0.03,115.43,115.35,17.3094289]
[1744288290494,0.03,115.43,115.36,0.28432314]
[1744288290713,0.03,115.43,115.42,38.27146089]
[1744288290927,38.27146089,115.43,115.35,17.3094289]
[1744288291124,38.27146089,115.36,115.35,17.3094289]
[1744288291416,26.03,115.41,115.32,38.27146089]
[1744288291618,25.97541373,115.41,115.33,38.27146089]
[1744288291827,38.27146089,115.35,115.31,52.33387428]
[1744288291984,0.28432314,115.43,115.31,90.60533517]
[1744288291985,18.64964886,115.43,115.31,90.60533517]
[1744288292189,18.64964886,115.47,115.39,52.33387428]
[1744288292486,18.68547688,115.48,115.39,52.33387428]
[1744288292689,0.03,115.48,115.39,90.60533517]
[1744288292888,38.27146089,115.44,115.39,52.33387428]
[1744288293091,38.27146089,115.42,115.39,52.33387428]
[1744288293319,38.27146089,115.4,115.39,52.33387428]
[1744288293500,56.92110975,115.4,115.39,52.33387428]
[1744288293688,18.933972,115.43,115.42,19.00517208]
[1744288293889,26.0,115.46,115.42,19.00517208]
[1744288294110,38.27146089,115.43,115.42,19.00517208]
[1744288294286,18.64964886,115.43,115.42,19.00517208]
[1744288294490,18.64964886,115.43,115.4,17.31049705]
[1744288294491,26.0,115.41,115.4,17.31049705]
[1744288294791,64.27146089,115.41,115.4,17.31049705]
[1744288295006,18.64964886,115.4,115.39,52.33387428]
[1744288295212,56.92110975,115.4,115.39,52.33387428]
[1744288295413,97.4666405,115.4,115.39,5.86087428]
[1744288295721,39.40849582,115.4,115.33,23.07923855]
[1744288295920,8.6647,115.41,115.33,23.07923855]
[1744288296222,39.40849582,115.41,115.33,23.07923855]
[1744288296425,18.64964886,115.43,115.34,39.40849582]
[1744288296593,39.40849582,115.36,115.33,23.07923855]
[1744288296916,39.40849582,115.34,115.33,23.07923855]
[1744288297114,26.0,115.39,115.33,23.07923855]
[1744288297424,39.40849582,115.39,115.33,62.48773437]
[1744288297719,48.97094886,115.43,115.33,23.07923855]
[1744288297931,39.40849582,115.38,115.33,23.07923855]
[1744288298092,30.3213,115.43,115.33,23.07923855]
[1744288298288,39.40849582,115.37,115.33,23.07923855]
[1744288298711,18.64964886,115.42,115.33,23.07923855]
[1744288299014,39.40849582,115.34,115.33,23.07923855]
[1744288299602,27.31824886,115.36,115.33,23.07923855]
[1744288299803,39.40849582,115.36,115.33,23.07923855]
[1744288300119,39.40849582,115.34,115.33,23.07923855]
[1744288300315,8.6676,115.38,115.33,23.07923855]
[1744288300510,8.6655,115.4,115.33,62.48773437]
[1744288300700,39.40849582,115.44,115.33,23.07923855]
[1744288300895,8.6602,115.47,115.37,8.6677]
[1744288301102,39.40849582,115.44,115.37,297.52]
[1744288301406,0.03,115.48,115.41,39.40849582]
[1744288301609,39.40849582,115.46,115.4,39.40849582]
[1744288301808,39.40849582,115.44,115.38,39.40849582]
[1744288302028,39.40849582,115.44,115.37,297.52]
[1744288302029,30.3382,115.48,115.37,297.52]
[1744288302230,39.40849582,115.43,115.37,297.52]
[1744288302409,18.933972,115.47,115.32,8.6715]
[1744288302609,18.64964886,115.47,115.32,48.07999582]
[1744288302929,39.40849582,115.38,115.32,39.40849582]
[1744288303137,18.64964886,115.47,115.35,39.40849582]
[1744288303138,8.6602,115.47,115.35,39.40849582]
[1744288303420,18.64964886,115.46,115.35,0.28432314]
[1744288303617,30.3108,115.47,115.38,39.40849582]
[1744288303928,39.40849582,115.39,115.32,39.40849582]
[1744288304239,39.40849582,115.37,115.32,39.40849582]
[1744288304536,18.64964886,115.43,115.33,39.40849582]
[1744288304696,39.40849582,115.37,115.29,297.52]
[1744288304900,39.40849582,115.34,115.29,297.52]
[1744288305133,39.40849582,115.38,115.29,336.92849582]
[1744288305430,39.40849582,115.31,115.29,297.52]
[1744288305609,39.40849582,115.32,115.29,297.52]
[1744288305813,39.40849582,115.3,115.28,0.063]
[1744288305998,39.40849582,115.29,115.28,0.063]
[1744288306194,26.0,115.34,115.28,0.063]
[1744288306631,18.64964886,115.36,115.28,8.7374]
[1744288306632,39.40849582,115.36,115.28,8.7374]
[1744288306997,39.40849582,115.36,115.31,39.40849582]
[1744288307338,39.40849582,115.37,115.32,39.40849582]
[1744288307502,39.40849582,115.37,115.31,39.40849582]
[1744288307702,8.6665,115.39,115.28,0.34732314]
[1744288308052,39.40849582,115.39,115.34,39.40849582]
[1744288308229,0.03,115.47,115.38,39.40849582]
[1744288308527,8.6904,115.47,115.35,0.14216157]
[1744288308726,8.6904,115.47,115.37,39.40849582]
[1744288308727,39.40849582,115.42,115.37,39.40849582]
[1744288309018,8.6904,115.47,115.4,0.28432314]
[1744288309019,39.43849582,115.47,115.4,0.28432314]
[1744288309225,39.40849582,115.45,115.39,0.28432314]
[1744288309424,26.03,115.47,115.38,39.40849582]
[1744288309721,0.03,115.47,115.34,8.95432314]
[1744288309924,39.40849582,115.39,115.28,0.063]
[1744288310218,18.64964886,115.43,115.29,30.3579]
[1744288310418,18.64964886,115.45,115.36,39.40849582]
[1744288310800,39.40849582,115.39,115.3,18.64964886]
[1744288311015,39.40849582,115.38,115.31,8.95652314]
[1744288311221,39.40849582,115.37,115.31,8.95652314]
[1744288311408,39.40849582,115.36,115.3,8.673]
[1744288311608,30.60562314,115.43,115.28,8.7373]
[1744288311818,39.40849582,115.37,115.31,39.40849582]
[1744288312020,18.64964886,115.42,115.32,39.40849582]
[1744288312233,39.40849582,115.37,115.32,39.40849582]
[1744288312435,0.03,115.47,115.36,39.69281896]
[1744288312622,39.43849582,115.47,115.39,0.28432314]
[1744288312818,0.03,115.47,115.39,0.28432314]
[1744288313149,0.03,115.47,115.37,8.6677]
[1744288313331,0.03,115.47,115.38,0.28432314]
[1744288313517,39.40849582,115.45,115.38,0.28432314]
[1744288313720,39.40849582,115.46,115.41,39.40849582]
[1744288314215,0.03,115.47,115.38,39.69281896]
[1744288314415,39.40849582,115.46,115.39,0.28432314]
[1744288314631,39.40849582,115.46,115.41,39.40849582]
[1744288314848,0.03,115.47,115.39,0.28432314]
[1744288315024,39.40849582,115.43,115.36,8.95282314]
[1744288315220,39.40849582,115.43,115.38,39.40849582]
[1744288315458,39.40849582,115.44,115.39,39.40849582]
[1744288315622,0.03,115.47,115.4,39.40849582]
[1744288315821,39.40849582,115.46,115.41,39.40849582]
[1744288316148,39.40849582,115.45,115.4,39.40849582]
[1744288316352,0.03,115.47,115.41,39.69281896]
[1744288316526,0.03,115.47,115.46,39.69281896]
[1744288317026,0.03,115.47,115.44,297.36]
[1744288317727,0.03,115.47,115.44,306.0224]
[1744288317929,0.03,115.47,115.44,297.36]
[1744288318437,39.43849582,115.47,115.44,297.36]
[1744288318630,39.40849582,115.45,115.4,26.0]
[1744288318830,39.40849582,115.44,115.37,305.9477]
[1744288319039,39.40849582,115.39,115.37,305.9477]
[1744288319261,39.40849582,115.41,115.37,305.9477]
[1744288319450,39.40849582,115.44,115.37,297.28]
[1744288319841,39.40849582,115.44,115.3,305.953]
[1744288320030,31.56054886,115.43,115.3,297.28]
[1744288320356,12.9109,115.43,115.3,336.68849582]
[1744288320541,18.64964886,115.42,115.3,297.28]
[1744288320851,31.56054886,115.43,115.33,39.40849582]
[1744288321051,12.9109,115.43,115.36,39.40849582]
[1744288321340,6.524,115.44,115.34,0.14216157]
[1744288321535,6.524,115.44,115.37,0.28432314]
[1744288321848,39.40849582,115.45,115.4,39.40849582]
[1744288322052,0.03,115.47,115.43,39.40849582]
[1744288322355,8.6904,115.47,115.39,297.32]
[1744288322654,0.03,115.47,115.43,39.40849582]
[1744288322858,39.40849582,115.45,115.39,297.32]
[1744288323450,0.03,115.47,115.43,39.40849582]
[1744288323653,39.43849582,115.47,115.42,39.40849582]
[1744288323822,0.03,115.47,115.44,39.40849582]
[1744288324028,0.03,115.47,115.43,39.40849582]
[1744288324225,0.03,115.47,115.43,26.0]
[1744288324645,0.03,115.47,115.44,39.40849582]
[1744288325024,0.03,115.47,115.43,8.6631]
[1744288325330,39.40849582,115.46,115.41,48.07319582]
[1744288325530,0.03,115.47,115.42,39.40849582]
[1744288325828,0.03,115.47,115.45,39.40849582]
[1744288326023,0.03,115.47,115.46,39.40849582]
[1744288326256,43.1821166,115.67,115.53,26.0]
[1744288326458,91.50616285,115.68,115.56,39.40849582]
[1744288326627,39.40849582,115.61,115.55,0.28432314]
[1744288326828,16.139,115.67,115.54,297.28]
[1744288327042,8.646,115.66,115.56,8.6534]
[1744288327240,24.785,115.66,115.58,39.40849582]
[1744288327446,16.139,115.66,115.62,39.40849582]
[1744288327762,39.40849582,115.65,115.56,48.06189582]
[1744288327927,39.40849582,115.62,115.57,39.40849582]
[1744288328126,39.40849582,115.63,115.55,0.28432314]
[1744288328341,91.50676285,115.68,115.6,39.40849582]
[1744288328556,43.81952522,115.71,115.64,39.40849582]
[1744288328723,43.62245141,115.69,115.6,26.0]
[1744288328928,43.45316703,115.68,115.64,39.40849582]
[1744288329157,25.34674886,115.72,115.67,39.40849582]
[1744288329158,49.74583733,115.72,115.67,39.40849582]
[1744288329355,91.16305919,115.73,115.68,39.40849582]
[1744288329525,43.04873733,115.72,115.66,39.40849582]
[1744288329853,43.04873733,115.72,115.63,297.18]
[1744288330060,0.28432314,115.7,115.63,297.18]
[1744288330229,39.40849582,115.66,115.63,297.18]
[1744288330431,39.40849582,115.64,115.58,39.40849582]
[1744288330733,18.64964886,115.68,115.61,39.40849582]
[1744288331032,8.6422,115.71,115.64,39.40849582]
[1744288331242,39.40849582,115.68,115.6,26.0]
[1744288331424,39.40849582,115.69,115.64,39.40849582]
[1744288331627,8.6422,115.71,115.61,26.0]
[1744288332052,39.40849582,115.69,115.61,26.0]
[1744288332256,39.40849582,115.66,115.57,8.6526]
[1744288332439,18.64964886,115.7,115.63,39.40849582]
[1744288332634,18.64964886,115.7,115.64,39.40849582]
[1744288332847,39.40849582,115.69,115.6,26.0]
[1744288333040,39.40849582,115.69,115.64,39.40849582]
[1744288333228,61.69838619,115.72,115.66,39.40849582]
[1744288333549,39.40849582,115.68,115.59,8.6512]
[1744288333752,39.40849582,115.68,115.6,39.40849582]
[1744288334054,18.933972,115.71,115.61,39.40849582]
[1744288334255,39.40849582,115.64,115.56,345.08179582]
[1744288334450,39.40849582,115.62,115.56,297.02]
[1744288334664,0.28432314,115.67,115.56,297.02]
[1744288334835,18.933972,115.67,115.58,39.40849582]
[1744288335028,39.40849582,115.6,115.56,297.02]
[1744288335257,18.64964886,115.62,115.5,39.40849582]
[1744288335566,8.6482,115.63,115.56,39.40849582]
[1744288335731,39.40849582,115.61,115.56,39.40849582]
[1744288335932,39.40849582,115.61,115.51,0.28432314]
[1744288335933,8.6482,115.63,115.57,39.40849582]
[1744288336132,39.40849582,115.6,115.54,26.0]
[1744288336333,39.40849582,115.61,115.56,39.40849582]
[1744288336540,39.40849582,115.59,115.54,39.40849582]
[1744288336742,18.64964886,115.62,115.54,39.40849582]
[1744288336947,39.40849582,115.57,115.52,39.40849582]
[1744288337155,8.6497,115.61,115.52,39.40849582]
[1744288337353,8.6497,115.61,115.54,39.40849582]
[1744288337634,39.40849582,115.61,115.56,39.40849582]
[1744288337835,21.2903,115.63,115.52,0.14216157]
[1744288338056,21.2903,115.63,115.52,0.28432314]
[1744288338247,39.40849582,115.63,115.52,0.28432314]
[1744288338455,39.40849582,115.65,115.6,39.40849582]
[1744288338761,12.5466,115.7,115.62,39.40849582]
[1744288339066,39.40849582,115.65,115.58,297.18432314]
[1744288339357,8.6475,115.64,115.58,296.9]
[1744288339548,39.40849582,115.61,115.58,296.9]
[1744288339751,8.6475,115.64,115.58,296.9]
[1744288340154,8.6469,115.65,115.58,296.9]
[1744288340356,8.6452,115.67,115.59,39.40849582]
[1744288340535,8.6452,115.67,115.58,305.5519]
[1744288340738,39.40849582,115.67,115.62,39.40849582]
[1744288340955,39.40849582,115.63,115.58,296.9]
[1744288341161,39.40849582,115.62,115.58,296.9]
[1744288341472,39.40849582,115.6,115.58,296.9]
[1744288341977,39.40849582,115.59,115.52,39.40849582]
[1744288342153,39.40849582,115.56,115.51,336.28849582]
[1744288342344,39.40849582,115.54,115.51,296.88]
[1744288342673,18.933972,115.61,115.44,336.24849582]
[1744288342962,7.4544,115.62,115.44,336.24849582]
[1744288342963,46.86289582,115.62,115.52,39.40849582]
[1744288343135,8.6505,115.6,115.51,26.0]
[1744288343338,39.40849582,115.55,115.5,39.40849582]
[1744288343840,39.40849582,115.54,115.45,8.6617]
[1744288344060,39.40849582,115.52,115.47,39.40849582]
[1744288344247,39.40849582,115.56,115.44,296.84]
[1744288344248,39.40849582,115.51,115.44,296.84]
[1744288344450,18.64964886,115.55,115.44,296.84]
[1744288344667,39.40849582,115.48,115.44,296.84]
[1744288344965,18.64964886,115.55,115.38,8.667]
[1744288344966,39.40849582,115.45,115.38,8.667]
[1744288345171,8.6595,115.48,115.37,296.84]
[1744288345376,39.40849582,115.43,115.38,39.40849582]
[1744288345743,39.40849582,115.44,115.42,0.063]
[1744288346067,18.64964886,115.47,115.42,0.063]
[1744288346252,8.6595,115.48,115.42,0.063]
[1744288346559,39.40849582,115.48,115.42,0.063]
[1744288346864,15.9935,115.5,115.42,0.063]
[1744288347039,8.6567,115.52,115.45,39.40849582]
[1744288347236,39.40849582,115.5,115.43,26.0]
[1744288347455,39.40849582,115.44,115.42,0.063]
[1744288347640,18.64964886,115.49,115.42,0.063]
[1744288347851,39.40849582,115.44,115.42,0.063]
[1744288348045,18.64964886,115.47,115.42,0.063]
[1744288348256,39.40849582,115.5,115.42,0.063]
[1744288348442,39.40849582,115.43,115.42,0.063]
[1744288348859,18.64964886,115.42,115.35,0.063]
[1744288349073,39.40849582,115.39,115.35,0.063]
[1744288349243,27.31284886,115.43,115.35,0.063]
[1744288349441,39.40849582,115.36,115.35,0.063]
[1744288349869,18.64964886,115.42,115.35,0.063]
[1744288350174,39.40849582,115.41,115.35,0.063]
[1744288350480,39.40849582,115.4,115.35,39.47149582]
[1744288350687,19.2365,115.44,115.38,39.40849582]
[1744288350969,39.40849582,115.39,115.35,0.063]
[1744288351169,39.40849582,115.4,115.35,0.063]
[1744288351471,39.40849582,115.37,115.35,0.063]
[1744288351647,39.40849582,115.36,115.35,0.063]
[1744288351853,8.665,115.41,115.35,0.063]
[1744288352067,39.40849582,115.36,115.35,0.063]
[1744288352365,58.05814468,115.36,115.35,0.063]
[1744288352567,18.64964886,115.37,115.35,0.063]
[1744288352774,39.40849582,115.36,115.35,0.063]
[1744288352974,8.665,115.41,115.35,0.063]
[1744288353145,27.31284886,115.43,115.35,0.063]
[1744288353479,39.40849582,115.4,115.35,39.47149582]
[1744288353979,39.40849582,115.37,115.35,0.063]
[1744288354146,8.664,115.42,115.35,0.063]
[1744288354478,18.64964886,115.41,115.35,0.063]
[1744288355049,39.40849582,115.36,115.35,0.063]
[1744288355350,48.07699582,115.36,115.35,0.063]
[1744288355605,66.72664468,115.36,115.34,0.063]
[1744288355747,39.40849582,115.35,115.34,0.063]
[1744288355948,58.05814468,115.35,115.34,0.063]
[1744288356161,0.14216157,115.39,115.34,0.063]
[1744288356364,39.40849582,115.35,115.34,0.063]
[1744288356872,58.05814468,115.35,115.34,0.063]
[1744288357082,18.64964886,115.34,115.29,0.063]
[1744288357374,8.6692,115.35,115.29,0.063]
[1744288357585,18.64964886,115.34,115.29,0.063]
[1744288357883,39.40849582,115.32,115.29,0.063]
[1744288358059,0.14216157,115.36,115.3,39.40849582]
[1744288358060,18.64964886,115.36,115.3,39.40849582]
[1744288358375,8.6632,115.43,115.32,39.40849582]
[1744288358762,39.40849582,115.42,115.37,39.40849582]
[1744288358972,12.0517,115.44,115.38,39.40849582]
[1744288359156,12.0517,115.44,115.4,39.40849582]
[1744288359479,0.03,115.49,115.43,39.40849582]
[1744288359684,39.40849582,115.46,115.38,39.40849582]
[1744288359987,8.6888,115.49,115.32,380.08529582]
[1744288359988,39.40849582,115.42,115.33,8.95502314]
[1744288360157,39.40849582,115.41,115.33,8.6707]
[1744288360353,39.40849582,115.41,115.37,39.40849582]
[1744288360662,18.64964886,115.43,115.37,39.40849582]
[1744288360866,39.40849582,115.42,115.37,39.40849582]
[1744288361066,18.64964886,115.45,115.38,39.40849582]
[1744288361275,39.40849582,115.43,115.38,39.40849582]
[1744288361454,39.40849582,115.39,115.34,39.40849582]
[1744288361652,39.40849582,115.4,115.35,39.40849582]
[1744288361855,39.40849582,115.38,115.3,8.673]
[1744288362082,39.40849582,115.38,115.33,39.40849582]
[1744288362286,39.40849582,115.36,115.31,39.40849582]
[1744288362493,39.40849582,115.38,115.3,8.673]
[1744288362659,18.64964886,115.4,115.31,39.40849582]
[1744288362991,26.0,115.39,115.34,39.40849582]
[1744288363163,8.6639,115.43,115.37,39.40849582]
[1744288363358,8.6639,115.43,115.32,39.40849582]
[1744288363359,18.64964886,115.43,115.32,39.40849582]
[1744288363685,18.64964886,115.43,115.36,39.40849582]
[1744288363686,39.40849582,115.41,115.36,39.40849582]
[1744288363872,69.72719582,115.44,115.35,39.40849582]
[1744288364059,39.40849582,115.36,115.29,0.063]
[1744288364261,18.64964886,115.37,115.29,0.063]
[1744288364563,39.40849582,115.32,115.29,0.063]
[1744288364880,13.2864,115.38,115.29,39.47149582]
[1744288365075,13.2864,115.38,115.3,39.40849582]
[1744288365282,39.40849582,115.35,115.3,39.40849582]
[1744288365463,8.6698,115.35,115.29,0.063]
[1744288365777,39.40849582,115.34,115.29,39.47149582]
[1744288365960,39.40849582,115.35,115.3,39.40849582]
[1744288366159,18.64964886,115.35,115.29,39.47149582]
[1744288366355,39.40849582,115.33,115.29,0.063]
[1744288366557,39.40849582,115.3,115.29,0.063]
[1744288367174,18.64964886,115.35,115.29,0.063]
[1744288367486,39.40849582,115.32,115.29,0.063]
[1744288367698,58.05814468,115.3,115.29,0.063]
[1744288368478,58.05814468,115.3,115.27,0.063]
[1744288368681,58.05814468,115.28,115.27,0.063]
[1744288369355,66.73264468,115.28,115.27,0.063]
[1744288369770,39.40849582,115.25,115.22,0.063]
[1744288369978,39.40849582,115.23,115.22,0.063]
[1744288370598,58.05814468,115.23,115.22,0.063]
[1744288370775,58.05814468,115.23,115.11,43.64462297]
[1744288370776,18.64964886,115.22,115.11,43.64462297]
[1744288370978,39.40849582,115.15,115.11,39.40849582]
[1744288371288,18.64964886,115.19,115.1,43.78471939]
[1744288371289,39.40849582,115.14,115.1,43.78471939]
[1744288371686,18.64964886,115.19,115.09,43.75768366]
[1744288371986,39.40849582,115.14,115.1,43.78471939]
[1744288372165,39.40849582,115.13,115.09,43.75768366]
[1744288372365,18.933972,115.18,115.08,43.48598164]
[1744288372583,39.40849582,115.12,115.08,43.48598164]
[1744288372882,0.28432314,115.18,115.06,43.01572527]
[1744288372883,39.40849582,115.11,115.06,43.01572527]
[1744288373573,29.19242593,115.09,115.05,4.156e-05]
[1744288373783,39.40849582,115.1,115.05,39.40853738]
[1744288373983,30.3877,115.18,115.08,39.40849582]
[1744288374187,39.40849582,115.11,115.05,4.156e-05]
[1744288374375,58.05814468,115.14,115.05,4.156e-05]
[1744288374695,18.933972,115.13,115.05,4.156e-05]
[1744288375062,18.64964886,115.13,115.05,39.40853738]
[1744288375261,39.40849582,115.1,115.06,39.40849582]
[1744288375484,39.40849582,115.1,115.05,39.40853738]
[1744288375685,39.40849582,115.09,115.05,4.156e-05]
[1744288375883,39.40849582,115.06,115.05,4.156e-05]
[1744288376083,26.0,115.09,115.05,4.156e-05]
[1744288376272,39.40849582,115.06,115.05,4.156e-05]
[1744288376473,39.40849582,115.07,115.05,4.156e-05]
[1744288376676,39.40849582,115.06,115.05,4.156e-05]
[1744288376971,39.40849582,115.07,115.05,4.156e-05]
[1744288377174,18.64964886,115.11,115.05,4.156e-05]
[1744288377382,39.40849582,115.09,115.05,4.156e-05]
[1744288377583,27.33714886,115.11,115.05,4.156e-05]
[1744288377898,39.40849582,115.07,115.05,4.156e-05]
[1744288378078,27.33714886,115.11,115.05,4.156e-05]
[1744288378274,39.40849582,115.08,115.05,4.156e-05]
[1744288378480,39.40849582,115.07,115.05,4.156e-05]
[1744288378786,39.40849582,115.08,115.05,4.156e-05]
[1744288379102,18.64964886,115.11,115.05,4.156e-05]
[1744288379399,39.40849582,115.06,115.05,4.156e-05]
[1744288379577,58.05814468,115.06,115.05,4.156e-05]
[1744288379772,26.0,115.02,115.0,157.72130493]
[1744288379975,58.05814468,115.01,115.0,157.72130493]
[1744288380594,58.34246782,115.01,115.0,149.95100493]
[1744288380969,58.34246782,115.01,115.0,128.84740493]
[1744288381185,58.34246782,115.01,115.0,16.55150493]
[1744288381494,67.03726782,115.01,115.0,16.55150493]
[1744288381796,18.64964886,115.04,115.0,16.55150493]
[1744288382091,39.40849582,115.03,115.0,16.55150493]
[1744288382279,18.64964886,115.06,115.0,16.55150493]
[1744288382480,39.40849582,115.04,115.0,16.55150493]
[1744288382680,12.7879,115.12,115.03,39.40849582]
[1744288382882,39.40849582,115.08,115.03,39.40849582]
[1744288383079,30.3924,115.16,115.06,39.40849582]
[1744288383289,39.40849582,115.13,115.08,39.40849582]
[1744288383588,39.40849582,115.17,115.12,39.40849582]
[1744288383791,39.40849582,115.19,115.14,39.40849582]
[1744288384088,78.81699164,115.15,115.06,39.40849582]
[1744288384285,39.40849582,115.11,115.04,8.6926]
[1744288384465,0.28432314,115.12,115.04,39.40849582]
[1744288384666,39.40849582,115.07,115.03,7.4414]
[1744288384869,39.40849582,115.08,115.03,46.84989582]
[1744288385065,18.64964886,115.1,115.03,46.84989582]
[1744288385293,18.64964886,115.1,115.03,7.4414]
[1744288385471,53.33834886,115.1,115.03,7.4414]
[1744288385673,18.64964886,115.13,115.06,39.40849582]
[1744288385891,39.40849582,115.16,115.11,39.40849582]
[1744288386093,39.40849582,115.16,115.05,0.14216157]
[1744288386296,39.40849582,115.14,115.09,39.40849582]
[1744288386606,8.6775,115.24,115.13,39.40849582]
[1744288386785,8.676,115.26,115.19,39.40849582]
[1744288386983,8.676,115.26,115.11,12.4882]
[1744288386984,69.77449582,115.26,115.11,12.4882]
[1744288387194,39.40849582,115.21,115.16,39.40849582]
[1744288387493,26.0,115.23,115.18,39.40849582]
[1744288387494,39.40849582,115.23,115.18,39.40849582]
[1744288387696,31.03741952,115.31,115.21,39.40849582]
[1744288387881,39.40849582,115.24,115.19,39.40849582]
[1744288388204,30.3558,115.3,115.19,39.40849582]
[1744288388502,39.40849582,115.21,115.16,39.40849582]
[1744288388706,0.03938555,115.2,115.18,39.40849582]
[1744288388884,0.03938555,115.2,115.15,7.6812]
[1744288389087,0.03938555,115.2,115.19,39.40849582]
[1744288389577,0.03938555,115.2,115.18,39.40849582]
[1744288389779,0.03938555,115.2,115.17,39.40849582]
[1744288389978,0.03938555,115.2,115.18,39.40849582]
[1744288390177,0.03938555,115.2,115.15,7.6812]
[1744288390381,0.03938555,115.2,115.18,39.40849582]
[1744288390585,0.03938555,115.2,115.15,47.08969582]
[1744288390785,0.03938555,115.2,115.17,39.40849582]
[1744288390999,39.40849582,115.19,115.15,7.6812]
[1744288391300,39.40849582,115.17,115.12,39.40849582]
[1744288391498,27.33134886,115.19,115.12,39.40849582]
[1744288391701,39.40849582,115.17,115.12,39.40849582]
[1744288392002,39.40849582,115.16,115.11,39.40849582]
[1744288392199,27.33134886,115.19,115.1,39.40849582]
[1744288392200,39.40849582,115.15,115.1,39.40849582]
[1744288392593,18.64964886,115.16,115.09,39.40849582]
[1744288392794,0.28432314,115.18,115.08,7.4624]
[1744288392795,39.40849582,115.15,115.1,39.40849582]
[1744288392994,0.28432314,115.17,115.08,46.87089582]
[1744288393199,39.40849582,115.17,115.12,39.40849582]
[1744288393584,8.6824,115.18,115.12,39.40849582]
[1744288393899,58.09753023,115.2,115.15,39.40849582]
[1744288394103,39.40849582,115.19,115.15,39.40849582]
[1744288394312,39.40849582,115.17,115.08,46.87089582]
[1744288394494,39.40849582,115.13,115.08,7.4624]
[1744288394695,26.0,115.17,115.08,46.87089582]
[1744288394896,39.40849582,115.16,115.11,39.40849582]
[1744288395098,39.40849582,115.15,115.1,39.40849582]
[1744288395300,39.40849582,115.14,115.09,39.40849582]
[1744288395512,39.40849582,115.13,115.08,7.4624]
[1744288395713,18.64964886,115.15,115.08,7.4624]
[1744288395894,27.33424886,115.15,115.11,39.40849582]
[1744288396093,39.40849582,115.13,115.08,7.4624]
[1744288396396,39.40849582,115.12,115.08,7.4624]
[1744288396583,65.40849582,115.12,115.08,7.4624]
[1744288397206,26.0,115.12,115.08,46.87089582]
[1744288397407,39.40849582,115.11,115.05,12.1968]
[1744288397709,74.09559582,115.12,115.07,39.40849582]
[1744288397892,74.09559582,115.12,115.02,39.40849582]
[1744288397893,39.40849582,115.11,115.02,39.40849582]
[1744288398089,34.6871,115.12,115.05,39.40849582]
[1744288398090,39.40849582,115.1,115.05,39.40849582]
[1744288398387,26.0,115.12,115.02,48.10239582]
[1744288398592,8.6867,115.12,115.02,48.10239582]
[1744288398808,8.6867,115.12,115.07,39.40849582]
[1744288398809,48.09519582,115.12,115.07,39.40849582]
[1744288399315,263.59964275,115.13,115.1,39.40849582]
[1744288399496,263.59964275,115.13,115.05,26.0]
[1744288399809,263.59964275,115.13,115.12,39.40849582]
[1744288400015,493.79848128,115.13,115.12,39.40849582]
[1744288400395,493.79848128,115.13,115.08,39.40849582]
[1744288400707,493.79848128,115.13,115.12,39.40849582]
[1744288401810,139.54713419,115.12,115.09,298.38432314]
[1744288401994,139.54713419,115.12,115.11,39.40849582]
[1744288402390,97.34053419,115.12,115.11,39.40849582]
[1744288402693,87.86963419,115.12,115.11,39.40849582]
[1744288403206,591.80396083,115.13,115.11,39.40849582]
[1744288403391,591.80396083,115.13,115.12,39.40849582]
[1744288404013,591.80396083,115.13,115.12,48.09499582]
[1744288404910,591.80396083,115.13,115.12,48.05561027]
[1744288405091,516.62106083,115.13,115.12,106.39807809]
[1744288405291,471.03676083,115.13,115.12,106.39807809]
[1744288405624,471.03676083,115.13,115.12,48.09499582]
[1744288405918,471.03676083,115.13,115.12,106.43746364]
[1744288406290,418.25296083,115.13,115.12,106.43746364]
[1744288406592,284.79666083,115.13,115.12,106.43746364]
[1744288406792,146.52136083,115.13,115.12,106.43746364]
[1744288406990,6.669e-05,115.17,115.12,128.65386364]
[1744288407294,6.669e-05,115.17,115.16,39.69281896]
[1744288407513,6.669e-05,115.17,115.16,39.40849582]